Cogmind - Beta 10.2 *** ADVENTURER MODE // 2021.04.15 @ 03:02:17 Player: Klaus Result: Destroyed by G-34 Mercenary with Small Laser Performance ------------- Evolutions (1) 500 Regions Visited (3) 600 Robots Destroyed (65) 325 Value Destroyed (1548) 1548 Prototype IDs (3) 60 Alien Tech Used (0) 0 Bonus (4) 4 TOTAL SCORE: 3037 Bonus ------- High Alert Combat Kills 4 Cogmind --------- Core Integrity 0/400 Matter 221/300 Energy 100/100 System Corruption 1% Temperature Cool (6) Movement Walking (240) Ox4 Location -9/Storage Parts ------- > --- POWER (1) -------- (None) > --- PROPULSION (3) --- Aluminum Leg > --- UTILITY (3) ------ High-capacity Storage Unit Hardened Light Armor Plating > --- WEAPON (2) ------- Heavy Assault Rifle Heavy Assault Rifle > --- INVENTORY (12) --- Large Battery (300) Drone Bay (2/2) Drone Bay (2/2) Drone Bay (2/2) Drone Bay (0/2) Heavy Assault Rifle Peak State ------------ > --- POWER ------------ Light Nuclear Core > --- PROPULSION ------- Wheel Wheel Wheel > --- UTILITY ---------- Large Storage Unit Hacking Suite Drone Bay > --- WEAPON ----------- Heavy Assault Rifle Heavy Assault Rifle > --- INVENTORY -------- Large Battery Hardened Light Armor Plating Drone Bay Drone Bay Drone Bay Heavy Assault Rifle [Rating: 21] Favorites ----------- Power Ion Engine Engine Ion Engine Power Core Light Nuclear Core Propulsion Light Treads Treads Light Treads Leg Aluminum Leg Wheel Wheel Hover Unit Hover Unit Flight Unit Flight Unit Utility Large Storage Unit Device Heat Sink Storage Large Storage Unit Processor Targeting Computer Hackware Hacking Suite Protection Power Shielding Weapon Spread Laser Energy Gun Spread Laser Energy Cannon Beam Cannon Ballistic Gun Heavy Assault Rifle Special Melee Weapon Datajack Build | -11 -10 -9 -9 ------- Run | Scr Mat Mat Sto Slots Evolved 2 | . . 2 . Power . | . . . . Propulsion 1 | . . 1 . Utility 1 | . . 1 . Weapon . | . . . . Parts Attached 49 | 6 5 32 6 Power 5 | 1 . 4 . Engine 1 | 1 . . . Core 4 | . . 4 . Reactor . | . . . . Propulsion 13 | 2 . 10 1 Treads 3 | 2 . 1 . Leg 3 | . . 2 1 Wheel 3 | . . 3 . Hover 2 | . . 2 . Flight 2 | . . 2 . Utility 15 | 1 3 8 3 Device 4 | . 1 2 1 Storage 5 | 1 1 2 1 Processor 3 | . 1 2 . Hackware 1 | . . 1 . Protection 2 | . . 1 1 Artifact . | . . . . Weapon 16 | 2 2 10 2 Energy Gun 9 | 2 . 7 . Energy Cannon 2 | . 2 . . Ballistic Gun 4 | . . 2 2 Ballistic Cannon . | . . . . Launcher . | . . . . Special Weapon . | . . . . Impact Weapon . | . . . . Slashing Weapon . | . . . . Piercing Weapon . | . . . . Special Melee Weapon 1 | . . 1 . Unidentified Prototypes . | . . . . Parts Lost 7 | . . 7 . Power 1 | . . 1 . Propulsion 2 | . . 2 . Utility . | . . . . Weapon 4 | . . 4 . Highest Loss Streak 3 | . . 3 . Average Slot Usage (%) 85 | . 97 78 85 Engine 6 | . 14 3 . Core 4 | . . 6 8 Treads 13 | . 28 8 . Leg 1 | . . 2 . Wheel 3 | . . . 25 Hover 1 | . . 2 . Device 3 | . 9 . 4 Storage 11 | . 14 10 11 Processor 11 | . 2 18 3 Hackware 2 | . . 2 8 Energy Gun 12 | . 6 17 . Energy Cannon 7 | . 21 . . Ballistic Gun 3 | . . 2 20 Naked Turns . | . . . . Heaviest Build 49 | 11 25 28 49 Greatest Support 40 | 40 40 40 30 Greatest Overweight (x) 14 | . . 8 14 Average Overweight (x) . | . . 1 . Largest Inventory Capacity 12 | 6 12 10 12 Average Capacity 8 | 5 6 9 10 Most Carried 10 | 2 6 10 8 Average Carried 6 | . 4 7 5 Final Capacity 12 | 6 10 10 12 Final Carried 6 | 1 5 3 6 Class Distribution -------------------- 78% | Mutant 12% | Hacker-Mutant 8% | Scavenger-Mutant Dominant Class ---------------- Mutant | -10/Materials Mutant | -9/Materials Scavenger-Mutant | -9/Storage Resources | -11 -10 -9 -9 ----------- Run | Scr Mat Mat Sto Matter Collected 891 | 176 134 378 203 Remotely . | . . . . Salvage Created 1964 | . 335 1034 595 Parts 115 | . 19 63 33 Haulers Intercepted . | . . . . Recyclers Shooed 2 | . . 2 . Parts Field Recycled . | . . . . Retrieved Matter . | . . . . Parts Self-Destructed . | . . . . Prevented . | . . . . Kills | -11 -10 -9 -9 ------- Run | Scr Mat Mat Sto Combat Hostiles Destroyed 49 | . 9 28 12 Melee 1 | . . 1 . Guns 38 | . 2 24 12 Cannons 9 | . 7 2 . Classes Destroyed 10 | . 3 7 . Worker 4 | . . 4 . Builder 1 | . . 1 . Tunneler 1 | . . 1 . Recycler 2 | . . 2 . Operator 2 | . . 2 . Watcher 6 | . 1 3 2 Swarmer 19 | . 3 13 3 Grunt 19 | . 6 8 5 Duelist 1 | . . 1 . Sentry 10 | . . 6 4 Best Kill Streak 8 | . 7 8 4 Combat Bots Only 7 | . 7 4 4 Max Kills in Single Turn 2 | . 1 2 1 Gunslinging 1 | . . 1 . Exploded . | . . . . Melee 1 | . . 1 . Uniques/NPCs Destroyed . | . . . . Combat | -11 -10 -9 -9 -------- Run | Scr Mat Mat Sto Damage Taken 1743 | . 350 801 592 Core 455 | . 49 184 222 Absorbed by Shields . | . . . . Core Remaining (%) 90 | 100 80 . . Volleys Fired 173 | . 31 105 37 Largest 2 | . 2 2 2 Hottest 130 | . 120 130 46 Shots Fired 314 | . 54 186 74 Gun 258 | . 19 165 74 Cannon 56 | . 35 21 . Launcher . | . . . . Special . | . . . . Kinetic 88 | . . 14 74 Thermal 226 | . 54 172 . Explosive . | . . . . Electromagnetic . | . . . . Robot Hit Streak 25 | . 15 25 20 Robot Miss Streak 6 | . 1 6 2 Penetration Max . | . . . . Secondary Targets 3 | . 1 1 1 Max Gunslinging Chain 1 | . 1 1 1 Shots Hit Robots 257 | . 44 157 56 Core Hits 165 | . 16 125 24 Critical Hits 1 | . . . 1 Critical Kills . | . . . . Critical Parts Destroyed 1 | . . . 1 Melee Attacks . | . . . . Impact . | . . . . Slashing . | . . . . Piercing . | . . . . Sneak Attacks . | . . . . Combat Hostiles . | . . . . Follow-up Attacks . | . . . . Damage Inflicted 3171 | . 564 1727 880 Guns 2439 | . 176 1383 880 Cannons 689 | . 388 301 . Explosions 42 | . . 42 . Melee . | . . . . Ramming 1 | . . 1 . Kinetic 1025 | . . 145 880 Thermal 2103 | . 564 1539 . Explosive . | . . . . Electromagnetic 42 | . . 42 . Impact . | . . . . Slashing . | . . . . Piercing . | . . . . Highest Corruption 1 | . . 1 1 Average Corruption 1 | . . 1 1 Corruption Purged . | . . . . Effects 9 | . . 8 1 Message Errors 3 | . . 3 . Data Loss (minor) 1 | . . 1 . Targeting Errors 4 | . . 3 1 Weapon Failures 1 | . . 1 . Overload Shots . | . . . . Overflow Damage . | . . . . Projectiles . | . . . . Explosions . | . . . . Melee . | . . . . Knockbacks . | . . . . Impact . | . . . . Kinetic . | . . . . Secondary . | . . . . Self-Inflicted Damage . | . . . . Shots . | . . . . Rammed 1 | . . 1 . Targets Rammed 1 | . . 1 . Kicked . | . . . . Crushed . | . . . . Highest Temperature 441 | . 216 441 9 Average Temperature 115 | . 53 131 4 Received Heat Transfer 642 | . 117 249 276 Effects 11 | . . 11 . Shutdowns 2 | . . 2 . Energy Bleed 2 | . . 2 . Interference 6 | . . 6 . Matter Decay 1 | . . 1 . Siege Activations . | . . . . Robots Corrupted . | . . . . Combat Hostiles . | . . . . Parts Fried . | . . . . Impact Corruptions . | . . . . Robots Melted 1 | . . 1 . Combat Hostiles 1 | . . 1 . Parts Melted 12 | . 5 7 . Heat Transferred 3618 | . 1226 2392 . Parts Sabotaged . | . . . . Parts Stolen . | . . . . Parts Stripped . | . . . . Power Chain Reactions . | . . . . Missiles Intercepted . | . . . . Alert | -11 -10 -9 -9 ------- Run | Scr Mat Mat Sto Peak Influence 421 | . 248 314 421 Initial 52 | . . 9 52 Average 103 | . 45 122 213 Maximum Alert Level 2 | . 1 1 2 Low Security (%) 80 | 100 98 74 51 Level 1 19 | . 1 25 45 Level 2 . | . . . 3 Level 3 . | . . . . Level 4 . | . . . . Level 5 . | . . . . High Security . | . . . . Max Security . | . . . . Squads Dispatched 8 | . 1 3 4 Investigation 1 | . 1 . . Extermination . | . . . . Reinforcement 6 | . . 3 3 Assault . | . . . . Garrison 1 | . . . 1 Intercept . | . . . . Construction Impeded . | . . . . Haulers Reinforced . | . . . . Stealth | -11 -10 -9 -9 --------- Run | Scr Mat Mat Sto Distress Signals 7 | . . 6 1 Communications Jammed . | . . . . Distress Signals . | . . . . Times Spotted 90 | . 19 47 24 Peak Tracking Total 5 | . 5 5 5 Tactical Retreats 1 | . . . 1 Traps | -11 -10 -9 -9 ------- Run | Scr Mat Mat Sto Traps Triggered 8 | . 3 1 4 Indirectly . | . . . . Trap Hack Attempts . | . . . . Triggered . | . . . . Disarmed . | . . . . Reprogrammed . | . . . . Reused . | . . . . Traps Extracted . | . . . . Installed . | . . . . Triggered . | . . . . Machines | -11 -10 -9 -9 ---------- Run | Scr Mat Mat Sto Machines Disabled 2 | . . 2 . Max in Single Turn 1 | . . 1 . Machines Sabotaged . | . . . . Garrisons Compromised . | . . . . Overloaded Fab Kills . | . . . . Fab Network Shutdowns . | . . . . Hacking | -11 -10 -9 -9 --------- Run | Scr Mat Mat Sto Machines Accessed 19 | . 10 7 2 Terminals 12 | . 7 3 2 Fabricators . | . . . . Repair Stations 3 | . 1 2 . Recycling Units 2 | . 2 . . Scanalyzers 2 | . . 2 . Garrison Access . | . . . . Total Hacks 82 | . 47 30 5 Successful 58 | . 28 27 3 Failed 24 | . 19 3 2 Catastrophic 1 | . . 1 . Database Lockouts . | . . . . Manual . | . . . . Terminals 49 | . 36 8 5 Fabricators . | . . . . Repair Stations 21 | . 5 16 . Recycling Units 6 | . 6 . . Scanalyzers 6 | . . 6 . Garrison Access . | . . . . Terminal Hacks 26 | . 18 5 3 Record 4 | . 4 . . Robot Analysis 1 | . 1 . . Prototype ID Bank 2 | . 1 1 . Open Door 1 | . . . 1 Emergency Access Points 1 | . . . 1 Alert Level 1 | . 1 . . Unreport Threat 3 | . 2 1 . Locate Traps 1 | . 1 . . Patrol Status 2 | . 1 1 . Transport Status 2 | . 2 . . Investigation Status 1 | . . 1 . Recall Investigation 1 | . . 1 . Recall Reinforcements 2 | . 1 . 1 Registered Prototypes 1 | . 1 . . Zone Layout 3 | . 3 . . Fabricator Hacks . | . . . . Repair Station Hacks 21 | . 5 16 . Scan Component 10 | . 2 8 . Repair 10 | . 2 8 . Refit 1 | . 1 . . Recycling Unit Hacks 5 | . 5 . . Report Inventory 2 | . 2 . . Retrieve Matter 2 | . 2 . . Retrieve Components 1 | . 1 . . Scanalyzer 6 | . . 6 . Insert Component 3 | . . 3 . Analyze 3 | . . 3 . Garrison Access Hacks . | . . . . Unauthorized Hacks . | . . . . Terminals . | . . . . Fabricators . | . . . . Repair Stations . | . . . . Recycling Units . | . . . . Scanalyzers . | . . . . Garrison Access . | . . . . Data Cores Recovered . | . . . . Used . | . . . . Hacking Detections 16 | . 9 6 1 Full Trace Events 1 | . 1 . . Feedback Events . | . . . . Feedback Blocked . | . . . . Robot Schematics Acquired . | . . . . Robots Built . | . . . . Matter . | . . . . Time . | . . . . Total Robot Build Rating . | . . . . Part Schematics Acquired 3 | . . 3 . Parts Built . | . . . . Matter . | . . . . Time . | . . . . Total Part Build Rating . | . . . . Parts Repaired 10 | . 2 8 . Time 308 | . 52 256 . Parts Recycled . | . . . . Recycled Matter . | . . . . Retrieved Matter . | . . . . Retrieved Components 1 | . 1 . . Parts Scanalyzed 3 | . . 3 . Part Schematics Acquired 3 | . . 3 . Parts Damaged . | . . . . Bothacking | -11 -10 -9 -9 ------------ Run | Scr Mat Mat Sto Used RIF Installer . | . . . . Robots Hacked . | . . . . Non-combat . | . . . . Combat . | . . . . Robot Hacks Applied . | . . . . Relay Couplers Released . | . . . . Robots Rewired . | . . . . Allies Hacked . | . . . . Hacks Repelled . | . . . . Allies | -11 -10 -9 -9 -------- Run | Scr Mat Mat Sto Total Allies . | . . . . Largest Group . | . . . . Highest-Rated Group . | . . . . Highest-Rated Ally . | . . . . Total Orders 3 | . . . 3 ROAM 1 | . . . 1 EXPLORE 2 | . . . 2 Ally Attacks . | . . . . Total Damage . | . . . . Kills . | . . . . Allies Corrupted . | . . . . Allies Melted . | . . . . Intel | -11 -10 -9 -9 ------- Run | Scr Mat Mat Sto Robot Analysis Total 1 | . 1 . . Derelict Logs Recovered . | . . . . Drone Launches 3 | . . . 3 Drone Recoveries 1 | . . . 1 Exploration | -11 -10 -9 -9 ------------- Run | Scr Mat Mat Sto Turns Passed 3346 | 94 1058 1865 329 Spaces Moved 1517 | 54 569 729 165 Core 28 | 4 . 19 5 Treads 937 | 50 569 318 . Legs 212 | . . 209 3 Wheels 211 | . . 54 157 Hover 124 | . . 124 . Flight 5 | . . 5 . Fastest Speed 50 | 50 160 50 80 Average Speed 169 | 151 160 192 103 Slowest Speed 750 | 160 160 450 750 Overloaded Moves . | . . . . Propulsion Burnouts . | . . . . Robots Hopped . | . . . . Cave-ins Triggered . | . . . . Exploration Rate (%) 52 | 5 94 63 47 Regions Visited 3 Branch Regions 1 Pre-discovered Areas . | . . . . Known Exits Taken . | . . . . Unknown Exits Taken 3 | 1 1 1 . Scrap Searched . | . . . . Spaces Dug . | . . . . Terrain Destroyed . | . . . . Melee . | . . . . Projectile . | . . . . AOE . | . . . . Terrain Rammed . | . . . . Walls Destroyed . | . . . . Machines Disabled . | . . . . Actions | -11 -10 -9 -9 --------- Run | Scr Mat Mat Sto Total 1982 | 66 664 1002 250 Wait 167 | . 49 87 31 Move 1514 | 53 568 728 165 Hop . | . . . . Pick Up 56 | 7 8 32 9 Fast Attach 9 | . 1 8 . Attach 33 | 6 4 18 5 Detach . | . . . . Swap 7 | . . 6 1 Drop 22 | . 3 17 2 Fire 173 | . 31 105 37 Melee . | . . . . Ram 1 | . . 1 . Kick . | . . . . Crush . | . . . . Escape Stasis . | . . . . Rewire . | . . . . Trap . | . . . . Miscellaneous . | . . . . Route ------- -11/Scrapyard -10/Materials (discovered 5 exits: *Mat x3 / [*Min x2]) -9/Materials (discovered 4 exits: [*Mat] / [*Min] / *Sto x2) -9/Storage History --------- Turn | Location | Event 4 | -11/Scrapyard | Discovered new exit (range 15) 95 | -11/Scrapyard | Entered Materials 226 | -10/Materials | Discovered new exit (range 10) 226 | -10/Materials | Discovered new exit (range 17) 317 | -10/Materials | Build established: Mutant 434 | -10/Materials | Discovered new exit (range 16) 523 | -10/Materials | Destroyed 7 combat bots 615 | -10/Materials | Discovered new exit (range 16) 892 | -10/Materials | Repaired Beam Cannon 918 | -10/Materials | Repaired Heat Sink? 921 | -10/Materials | Discovered new exit (range 10) 1153 | -10/Materials | Entered another Materials area 1153 | -9/Materials | Evolved 2 slots: Propulsion x1, Utility x1 1154 | -9/Materials | Discovered new exit (range 7) 1297 | -9/Materials | Discovered new exit (range 12) 1816 | -9/Materials | Lost 3 parts (1p1n1w) 1882 | -9/Materials | Discovered new exit (range 18) 2019 | -9/Materials | Repaired Spread Laser 2463 | -9/Materials | Lost 3 parts (1n2w) 2836 | -9/Materials | Repaired Spread Laser 2836 | -9/Materials | Repaired Reclamation Unit 2836 | -9/Materials | Repaired Lgt. Nuclear Core 2836 | -9/Materials | Repaired Aluminum Leg 2862 | -9/Materials | Repaired Lrg. Storage Unit 2902 | -9/Materials | Build established: Hacker-Mutant 2911 | -9/Materials | Repaired Lgt. Nuclear Core 2950 | -9/Materials | Repaired Reclamation Unit 2979 | -9/Materials | Discovered new exit (range 8) 3018 | -9/Materials | Entered Storage 3047 | -9/Storage | Core integrity fell below 50% 3297 | -9/Storage | Garrison activated, responded to threat 3320 | -9/Storage | Core integrity fell below 20% 3347 | -9/Storage | Destroyed by G-34 Mercenary with Small Laser Last Messages --------------- 03304_ K-01 Serf collects debris. 03312_ Y-45 Defender destroyed. 03312_ K-01 Serf collects debris. 03319_ Compression Vault explodes. 03319_ G-34 Mercenary destroyed. 03319_ U-05 Engineer destroyed. 03319_ K-01 Serf destroyed. 03322_ Acquired Aluminum Leg. 03324_ U-05 Engineer lays Concrete. 03329_ Acquired Hvy. Assault Rifle. 03329_ U-05 Engineer lays Concrete. 03331_ U-05 Engineer builds a Door. 03333_ S-10 Pest destroyed. 03335_ U-05 Engineer lays Concrete. 03336_ S-10 Pest destroyed. 03337_ U-05 Engineer builds a Wall. 03341_ U-05 Engineer lays Concrete. 03341_ U-05 Engineer builds a Wall. 03342_ U-05 Engineer lays Concrete. 03344_ S-10 Pest destroyed. Map ----- +----------------------------------------------------+ | | | | | | | | | | | | | | | | | | | | | | | | | | | ????????????????????????????????????????????????? | | ??????????????????????????#?????????????????????? | | ????????????????????###### #????????????????????? | | ????????????????????# #??????????????????? | | ????????????????????# !!"""#??????????????????? | | ?????????????????#### !%"""#??????????????????? | | ?????????????????#""" ="""##?????????????????? | | ?????????????????#"R #?????????????????? | | ??????????????????""" #?????????????????? | | ????????????????????# % #?????????????????? | | ????????????????????# % *[ #?????????????????? | | ??????????????###???# * % #?????????????????? | | ?????????????## =## @/# #?????????????????? | | ?????????? %%= uugg # ""???????? | | ?????????? T =[ != + """????????? | | ?????????? %% =^ # """????????? | | ???????????#### [######## ##?? """????????? | | ??????????????#####????????# #?????? ???????? | | ????????????????????????####/#####??????????? | | ????????????????????????# #???????????# | | ????????????????????????# #???????????# | | ????????????????????????# #???????????# | | ????????????????????????# #???????????# | | ????????????????????????# #???????????+ | | ????????????????????????# #???????????# ! | | ????????????????????????# #???????????# !% | | ????????????????????????# #???????????# | | ????????????????????????# #??###??????# ! | | ???????????????##############+####### ######## [% | | ?????????????? ## # == | | ?????????????? ## # | | ?????????????? ## !% # | | ???????????????# #########+####### #* | | ???????????????#???????# !!!# """" %/* | | ???????????????????????# !!!# """" =#%! | | ???????????????????????# ] !!!# """" #[ | | ???????????????????? + + """" # | +----------------------------------------------------+ Best States ------------- Heat Dissipation 35 Energy Generation 14 Energy Capacity 250 Matter Stores 300 Matter Capacity 300 Sight Range 18 Terrain Scan Density 10 Armor Coverage 150 Resistance: KI 20 Resistance: TH 20 Resistance: EX 20 Resistance: EM 20 Resistance: I 20 Resistance: S 20 Resistance: P 20 Power Shielding 33 Reclamation Efficiency 10 Evasion (%) 44 Targeting Accuracy 5 Recoil Reduction 2 Offensive Hacking 20 Item Schematics ----------------- Spread Laser | -9/Materials | Scanalyzed Hrd. Light Armor Plating | -9/Materials | Scanalyzed Hacking Suite | -9/Materials | Scanalyzed Robot Schematics ------------------ None Fabricated ------------ Nothing Alien Tech Used ----------------- None Achievements -------------- Universal Adapter Challenges ------------ None Game ------ Seed AntimissileFieldBox Manual? 0 Play Time 00:41:17 Cumulative 31.8 hours Start 2021.04.15 @ 02:18:14 End 2021.04.15 @ 03:02:17 Sessions 1 Manual Loads 0 Difficulty Adventurer Special Mode None Game No. 36 Rogue 34 Adventurer 2 Explorer 0 Win Type - Total 0 Types 0/0/0/0/0/0/0/0/0 Lore% 13 Gallery% 28 Achievement% 20 Wizard Run 0 Options --------- ASCII 0 Keyboard 0 Movement Mouse Keybinds 0 Fullscreen 1 Font 18/SmallcapsGlow Map View 76x50 Tactical HUD 1 Map Filters NONE Filters NONE Steam 1 RUN: 404e6454-f37f-41f5-8743-0e32349ec861